[Event "Titled Tuesday Blitz June 13 Late 2023"]
[White "Toniutti, Ezio"]
[Black "Bogaudinov, Rushan"]
[WhiteFideId "113034"]
[BlackFideId "4129288"]
[WhiteElo "2215"]
[BlackElo "1967"]
[Result "1-0"]
[Round "8"]
[TimeControl "180+2"]
[Date "2023.06.13"]
[WhiteClock "0:00:12"]
[BlackClock "0:00:15"]
[Board "98"]

1. d4 {[%clk 0:03:00]}  Nf6 {[%clk 0:02:59]} 2. c4 {[%clk 0:02:59]}  e6 {[%clk 0:02:59]} 3. g3 {[%clk 0:02:59]}  c5 {[%clk 0:02:49]} 4. d5 {[%clk 0:02:55]}  b5 {[%clk 0:02:49]} 5. e4 {[%clk 0:02:52]}  bxc4 {[%clk 0:02:46]} 6. Nc3 {[%clk 0:02:50]}  Bb7 {[%clk 0:02:27]} 7. Bxc4 {[%clk 0:02:47]}  h5 {[%clk 0:01:58]} 8. Nf3 {[%clk 0:02:46]}  h4 {[%clk 0:01:55]} 9. O-O {[%clk 0:02:31]}  hxg3 {[%clk 0:01:53]} 10. hxg3 {[%clk 0:02:31]}  Ng4 {[%clk 0:01:25]} 11. Kg2 {[%clk 0:02:24]}  Qf6 {[%clk 0:01:18]} 12. Bg5 {[%clk 0:02:18]}  Qg6 {[%clk 0:01:14]} 13. Rh1 {[%clk 0:02:14]}  Rxh1 {[%clk 0:01:12]} 14. Qxh1 {[%clk 0:02:14]}  f6 {[%clk 0:01:07]} 15. Bd2 {[%clk 0:01:20]}  Na6 {[%clk 0:00:59]} 16. Qh3 {[%clk 0:01:15]}  O-O-O {[%clk 0:00:53]} 17. Nh4 {[%clk 0:01:15]}  Qh5 {[%clk 0:00:49]} 18. Be2 {[%clk 0:01:03]}  f5 {[%clk 0:00:44]} 19. Rh1 {[%clk 0:00:56]}  exd5 {[%clk 0:00:29]} 20. Nxf5 {[%clk 0:00:44]}  Qxh3+ {[%clk 0:00:27]} 21. Rxh3 {[%clk 0:00:44]}  Nf6 {[%clk 0:00:25]} 22. exd5 {[%clk 0:00:37]}  Nxd5 {[%clk 0:00:25]} 23. Bf3 {[%clk 0:00:35]}  Nxc3 {[%clk 0:00:23]} 24. Bxc3 {[%clk 0:00:35]}  Bxf3+ {[%clk 0:00:22]} 25. Kxf3 {[%clk 0:00:35]}  d5 {[%clk 0:00:21]} 26. Bxg7 {[%clk 0:00:32]}  d4 {[%clk 0:00:21]} 27. Ke2 {[%clk 0:00:27]}  Nb4 {[%clk 0:00:20]} 28. Kd2 {[%clk 0:00:23]}  Bxg7 {[%clk 0:00:19]} 29. Nxg7 {[%clk 0:00:22]}  Nxa2 {[%clk 0:00:18]} 30. Ne6 {[%clk 0:00:20]}  Rd6 {[%clk 0:00:18]} 31. Nxc5 {[%clk 0:00:20]}  Nb4 {[%clk 0:00:15]} 32. Nd3 {[%clk 0:00:20]}  Rb6 {[%clk 0:00:13]} 33. Rh8+ {[%clk 0:00:18]}  Kd7 {[%clk 0:00:12]} 34. Rh7+ {[%clk 0:00:18]}  Kd6 {[%clk 0:00:10]} 35. Rh6+ {[%clk 0:00:18]}  Kd5 {[%clk 0:00:05]} 36. Rxb6 {[%clk 0:00:17]}  Nxd3 {[%clk 0:00:05]} 37. Kxd3 {[%clk 0:00:14]}  axb6 {[%clk 0:00:04]} 38. f4 {[%clk 0:00:15]}  b5 {[%clk 0:00:05]} 39. g4 {[%clk 0:00:15]}  b4 {[%clk 0:00:05]} 40. b3 {[%clk 0:00:15]}  Kc5 {[%clk 0:00:04]} 41. Ke4 {[%clk 0:00:11]}  d3 {[%clk 0:00:04]} 42. Kxd3 {[%clk 0:00:11]}  Kd5 {[%clk 0:00:05]} 43. g5 {[%clk 0:00:11]}  Ke6 {[%clk 0:00:06]} 44. Ke4 {[%clk 0:00:11]}  Kd6 {[%clk 0:00:07]} 45. f5 {[%clk 0:00:12]}  Ke7 {[%clk 0:00:07]} 46. Ke5 {[%clk 0:00:12]}  Kf7 {[%clk 0:00:07]} 47. g6+ {[%clk 0:00:12]}  Kg7 {[%clk 0:00:08]} 48. Ke6 {[%clk 0:00:12]}  Kf8 {[%clk 0:00:09]} 49. Kf6 {[%clk 0:00:11]}  Ke8 {[%clk 0:00:09]} 50. Kg7 {[%clk 0:00:11]}  Kd7 {[%clk 0:00:10]} 51. Kh7 {[%clk 0:00:12]}  Kd6 {[%clk 0:00:10]} 52. g7 {[%clk 0:00:12]}  Kd5 {[%clk 0:00:11]} 53. g8=Q+ {[%clk 0:00:13]}  Kc5 {[%clk 0:00:11]} 54. Qc4+ {[%clk 0:00:13]}  Kd6 {[%clk 0:00:12]} 55. Qxb4+ {[%clk 0:00:14]}  Ke5 {[%clk 0:00:10]} 56. Qc4 {[%clk 0:00:14]}  Kf6 {[%clk 0:00:11]} 57. b4 {[%clk 0:00:12]}  Kg5 {[%clk 0:00:12]} 58. b5 {[%clk 0:00:13]}  Kf6 {[%clk 0:00:12]} 59. b6 {[%clk 0:00:14]}  Ke7 {[%clk 0:00:13]} 60. b7 {[%clk 0:00:13]}  Kd7 {[%clk 0:00:14]} 61. b8=Q {[%clk 0:00:13]}  Ke7 {[%clk 0:00:15]} 62. Qe6# {[%clk 0:00:12]} 1-0


[Site "https://www.chess.com"]

[Event "Titled Tuesday Blitz June 13 Late 2023"]
[White "Ai, Evan"]
[Black "el_sporco"]
[WhiteFideId "2094770"]
[WhiteElo "1963"]
[BlackElo "2369"]
[Result "1-0"]
[Round "8"]
[TimeControl "180+2"]
[Date "2023.06.13"]
[WhiteClock "0:02:37"]
[BlackClock "0:01:37"]
[Board "99"]

1. e4 {[%clk 0:03:00]}  c5 {[%clk 0:02:59]} 2. Nf3 {[%clk 0:03:01]}  d6 {[%clk 0:02:59]} 3. d4 {[%clk 0:03:01]}  cxd4 {[%clk 0:03:00]} 4. Nxd4 {[%clk 0:03:01]}  Nf6 {[%clk 0:03:01]} 5. Nc3 {[%clk 0:03:02]}  a6 {[%clk 0:03:01]} 6. h3 {[%clk 0:03:01]}  e6 {[%clk 0:02:32]} 7. g4 {[%clk 0:03:01]}  h6 {[%clk 0:02:33]} 8. Bg2 {[%clk 0:03:01]}  Be7 {[%clk 0:02:29]} 9. Be3 {[%clk 0:03:00]}  Nc6 {[%clk 0:02:29]} 10. Qe2 {[%clk 0:02:47]}  Nd7 {[%clk 0:02:26]} 11. O-O-O {[%clk 0:02:44]}  Qc7 {[%clk 0:02:16]} 12. f4 {[%clk 0:02:39]}  b5 {[%clk 0:02:11]} 13. Nxc6 {[%clk 0:02:37]}  Qxc6 {[%clk 0:02:12]} 14. e5 {[%clk 0:02:38]}  d5 {[%clk 0:02:03]} 15. Nxd5 {[%clk 0:02:38]}  Bb7 {[%clk 0:01:51]} 16. Nf6+ {[%clk 0:02:37]}  gxf6 {[%clk 0:01:51]} 17. Bxc6 {[%clk 0:02:37]}  Bxc6 {[%clk 0:01:52]} 18. Rhf1 {[%clk 0:02:35]}  fxe5 {[%clk 0:01:51]} 19. fxe5 {[%clk 0:02:36]}  Nxe5 {[%clk 0:01:37]} 20. Bd4 {[%clk 0:02:37]} 1-0


[Site "https://www.chess.com"]

[Event "Titled Tuesday Blitz June 13 Late 2023"]
[White "whiteglovethief"]
[Black "Quinones Garcia, Santiago"]
[BlackFideId "4408497"]
[WhiteElo "2474"]
[BlackElo "2173"]
[Result "1-0"]
[Round "8"]
[TimeControl "180+2"]
[Date "2023.06.13"]
[WhiteClock "0:01:51"]
[BlackClock "0:02:04"]
[Board "101"]

1. d4 {[%clk 0:03:00]}  Nf6 {[%clk 0:02:56]} 2. c4 {[%clk 0:03:00]}  g6 {[%clk 0:02:56]} 3. Nc3 {[%clk 0:02:54]}  d5 {[%clk 0:02:54]} 4. cxd5 {[%clk 0:02:51]}  Nxd5 {[%clk 0:02:50]} 5. e4 {[%clk 0:02:52]}  Nxc3 {[%clk 0:02:50]} 6. bxc3 {[%clk 0:02:52]}  Bg7 {[%clk 0:02:51]} 7. Nf3 {[%clk 0:02:51]}  c5 {[%clk 0:02:51]} 8. Rb1 {[%clk 0:02:52]}  O-O {[%clk 0:02:49]} 9. Be2 {[%clk 0:02:51]}  cxd4 {[%clk 0:02:49]} 10. cxd4 {[%clk 0:02:50]}  Qa5+ {[%clk 0:02:50]} 11. Bd2 {[%clk 0:02:50]}  Qxa2 {[%clk 0:02:50]} 12. O-O {[%clk 0:02:51]}  Bg4 {[%clk 0:02:50]} 13. Bg5 {[%clk 0:02:51]}  Nc6 {[%clk 0:02:48]} 14. Rxb7 {[%clk 0:02:46]}  Bxf3 {[%clk 0:02:34]} 15. Bxf3 {[%clk 0:02:47]}  Nxd4 {[%clk 0:02:30]} 16. Bxe7 {[%clk 0:02:44]}  Rfe8 {[%clk 0:02:29]} 17. Rd7 {[%clk 0:02:35]}  Nxf3+ {[%clk 0:02:26]} 18. gxf3 {[%clk 0:02:32]}  a5 {[%clk 0:02:23]} 19. Qd5 {[%clk 0:02:23]}  Qb2 {[%clk 0:02:19]} 20. Bd8 {[%clk 0:01:54]}  Qf6 {[%clk 0:02:04]} 21. Bxf6 {[%clk 0:01:51]} 1-0


[Site "https://www.chess.com"]

[Event "Titled Tuesday Blitz June 13 Late 2023"]
[White "ArchibaldCerveza29"]
[Black "Szente Varga, Fruzsina"]
[BlackFideId "712264"]
[WhiteElo "2461"]
[BlackElo "1994"]
[Result "0-1"]
[Round "8"]
[TimeControl "180+2"]
[Date "2023.06.13"]
[WhiteClock "0:00:00"]
[BlackClock "0:00:16"]
[Board "103"]

1. e4 {[%clk 0:03:00]}  e5 {[%clk 0:02:55]} 2. Nf3 {[%clk 0:02:58]}  Nc6 {[%clk 0:02:55]} 3. Bc4 {[%clk 0:02:56]}  Nf6 {[%clk 0:02:51]} 4. O-O {[%clk 0:02:55]}  Be7 {[%clk 0:02:50]} 5. Re1 {[%clk 0:02:55]}  O-O {[%clk 0:02:50]} 6. c3 {[%clk 0:02:55]}  d5 {[%clk 0:02:30]} 7. exd5 {[%clk 0:02:55]}  Nxd5 {[%clk 0:02:31]} 8. Nxe5 {[%clk 0:02:50]}  Nxe5 {[%clk 0:02:31]} 9. Rxe5 {[%clk 0:02:51]}  c6 {[%clk 0:02:31]} 10. d4 {[%clk 0:02:46]}  Bd6 {[%clk 0:02:31]} 11. Re1 {[%clk 0:02:41]}  Qh4 {[%clk 0:02:30]} 12. g3 {[%clk 0:02:41]}  Qh3 {[%clk 0:02:30]} 13. Qf3 {[%clk 0:02:32]}  Bg4 {[%clk 0:02:30]} 14. Qg2 {[%clk 0:02:31]}  Qh5 {[%clk 0:02:29]} 15. Bf1 {[%clk 0:02:02]}  Rae8 {[%clk 0:02:23]} 16. Be3 {[%clk 0:01:59]}  f5 {[%clk 0:02:18]} 17. c4 {[%clk 0:01:36]}  f4 {[%clk 0:02:17]} 18. cxd5 {[%clk 0:01:27]}  fxe3 {[%clk 0:01:22]} 19. Rxe3 {[%clk 0:01:17]}  Rxe3 {[%clk 0:01:10]} 20. fxe3 {[%clk 0:01:18]}  Bf3 {[%clk 0:00:57]} 21. Qh3 {[%clk 0:01:18]}  Qxd5 {[%clk 0:00:56]} 22. Nd2 {[%clk 0:01:13]}  Qg5 {[%clk 0:00:49]} 23. Bc4+ {[%clk 0:01:09]}  Kh8 {[%clk 0:00:49]} 24. Re1 {[%clk 0:00:59]}  Bb4 {[%clk 0:00:39]} 25. Rf1 {[%clk 0:00:44]}  Qxe3+ {[%clk 0:00:35]} 26. Rf2 {[%clk 0:00:40]}  Bxd2 {[%clk 0:00:28]} 27. Qf1 {[%clk 0:00:08]}  Be1 {[%clk 0:00:27]} 28. Bb3 {[%clk 0:00:06]}  Be4 {[%clk 0:00:18]} 29. Bf7 {[%clk 0:00:00]}  Rxf7 {[%clk 0:00:16]} 0-1


[Site "https://www.chess.com"]

[Event "Titled Tuesday Blitz June 13 Late 2023"]
[White "Zhou, Qiyu"]
[Black "Bettalli, Francesco"]
[WhiteFideId "505161"]
[BlackFideId "2816453"]
[WhiteElo "2101"]
[BlackElo "2216"]
[Result "1-0"]
[Round "8"]
[TimeControl "180+2"]
[Date "2023.06.13"]
[WhiteClock "0:00:11"]
[BlackClock "0:01:47"]
[Board "104"]

1. e4 {[%clk 0:02:57]}  e5 {[%clk 0:02:58]} 2. Nf3 {[%clk 0:02:57]}  Nf6 {[%clk 0:02:57]} 3. Nxe5 {[%clk 0:02:56]}  Nc6 {[%clk 0:02:58]} 4. Nxc6 {[%clk 0:02:53]}  dxc6 {[%clk 0:02:59]} 5. d3 {[%clk 0:02:49]}  Bc5 {[%clk 0:02:59]} 6. Be2 {[%clk 0:02:36]}  h5 {[%clk 0:02:58]} 7. c3 {[%clk 0:02:20]}  Ng4 {[%clk 0:02:58]} 8. d4 {[%clk 0:02:13]}  Qh4 {[%clk 0:02:58]} 9. Bxg4 {[%clk 0:02:05]}  Bxg4 {[%clk 0:02:52]} 10. Qd3 {[%clk 0:01:58]}  O-O-O {[%clk 0:02:45]} 11. Bf4 {[%clk 0:01:43]}  Rhe8 {[%clk 0:02:40]} 12. Nd2 {[%clk 0:01:33]}  Bb6 {[%clk 0:02:32]} 13. O-O {[%clk 0:01:09]}  Qf6 {[%clk 0:02:18]} 14. Qe3 {[%clk 0:01:03]}  Qg6 {[%clk 0:02:16]} 15. Rae1 {[%clk 0:00:53]}  h4 {[%clk 0:02:15]} 16. h3 {[%clk 0:00:52]}  Be6 {[%clk 0:02:13]} 17. b3 {[%clk 0:00:47]}  f6 {[%clk 0:02:10]} 18. Kh1 {[%clk 0:00:42]}  Qf7 {[%clk 0:02:09]} 19. Bh2 {[%clk 0:00:36]}  g5 {[%clk 0:02:09]} 20. f4 {[%clk 0:00:28]}  g4 {[%clk 0:02:07]} 21. f5 {[%clk 0:00:28]}  Bd7 {[%clk 0:01:57]} 22. hxg4 {[%clk 0:00:26]}  Rg8 {[%clk 0:01:57]} 23. Qh3 {[%clk 0:00:24]}  Rg5 {[%clk 0:01:56]} 24. Bf4 {[%clk 0:00:23]}  Rg7 {[%clk 0:01:56]} 25. Nc4 {[%clk 0:00:23]}  Rdg8 {[%clk 0:01:55]} 26. Ne3 {[%clk 0:00:18]}  c5 {[%clk 0:01:54]} 27. Rd1 {[%clk 0:00:18]}  cxd4 {[%clk 0:01:55]} 28. cxd4 {[%clk 0:00:19]}  Bb5 {[%clk 0:01:54]} 29. Rfe1 {[%clk 0:00:19]}  Qd7 {[%clk 0:01:54]} 30. g5 {[%clk 0:00:16]}  fxg5 {[%clk 0:01:53]} 31. Be5 {[%clk 0:00:17]}  Re7 {[%clk 0:01:52]} 32. f6 {[%clk 0:00:16]}  Qxh3+ {[%clk 0:01:51]} 33. gxh3 {[%clk 0:00:17]}  Rf7 {[%clk 0:01:52]} 34. Nf5 {[%clk 0:00:16]}  Kd7 {[%clk 0:01:51]} 35. Nh6 {[%clk 0:00:17]}  Rgf8 {[%clk 0:01:49]} 36. Nxf7 {[%clk 0:00:17]}  Rxf7 {[%clk 0:01:49]} 37. Kg2 {[%clk 0:00:13]}  a5 {[%clk 0:01:48]} 38. a4 {[%clk 0:00:13]}  Ba6 {[%clk 0:01:48]} 39. Kf3 {[%clk 0:00:13]}  c6 {[%clk 0:01:49]} 40. Kg4 {[%clk 0:00:13]}  Bd8 {[%clk 0:01:48]} 41. Kxg5 {[%clk 0:00:12]}  Ke6 {[%clk 0:01:48]} 42. Rd2 {[%clk 0:00:06]}  Bxf6+ {[%clk 0:01:46]} 43. Bxf6 {[%clk 0:00:07]}  Rxf6 {[%clk 0:01:46]} 44. d5+ {[%clk 0:00:08]}  Kf7 {[%clk 0:01:46]} 45. e5 {[%clk 0:00:07]}  Rg6+ {[%clk 0:01:46]} 46. Kxh4 {[%clk 0:00:07]}  cxd5 {[%clk 0:01:47]} 47. Rxd5 {[%clk 0:00:06]}  Rg2 {[%clk 0:01:42]} 48. e6+ {[%clk 0:00:05]}  Ke8 {[%clk 0:01:42]} 49. e7 {[%clk 0:00:03]}  Be2 {[%clk 0:01:35]} 50. Rd8+ {[%clk 0:00:01]}  Kxe7 {[%clk 0:01:35]} 51. Rd2 {[%clk 0:00:02]}  Rg6 {[%clk 0:01:33]} 52. Rdxe2+ {[%clk 0:00:03]}  Kd6 {[%clk 0:01:34]} 53. Re4 {[%clk 0:00:03]}  Kd5 {[%clk 0:01:34]} 54. Re5+ {[%clk 0:00:03]}  Kd4 {[%clk 0:01:34]} 55. R1e4+ {[%clk 0:00:04]}  Kc3 {[%clk 0:01:35]} 56. Re3+ {[%clk 0:00:05]}  Kb4 {[%clk 0:01:36]} 57. Kh5 {[%clk 0:00:06]}  Rg1 {[%clk 0:01:35]} 58. h4 {[%clk 0:00:06]}  b5 {[%clk 0:01:36]} 59. Rxb5+ {[%clk 0:00:05]}  Ka3 {[%clk 0:01:37]} 60. Rxa5 {[%clk 0:00:05]}  Kb4 {[%clk 0:01:37]} 61. Rb5+ {[%clk 0:00:05]}  Ka3 {[%clk 0:01:38]} 62. Rbe5 {[%clk 0:00:06]}  Kb4 {[%clk 0:01:38]} 63. Kh6 {[%clk 0:00:07]}  Rg8 {[%clk 0:01:39]} 64. h5 {[%clk 0:00:08]}  Rg1 {[%clk 0:01:40]} 65. Kh7 {[%clk 0:00:08]}  Rg4 {[%clk 0:01:40]} 66. h6 {[%clk 0:00:09]}  Rh4 {[%clk 0:01:41]} 67. Kg7 {[%clk 0:00:09]}  Rg4+ {[%clk 0:01:42]} 68. Kh8 {[%clk 0:00:09]}  Rh4 {[%clk 0:01:42]} 69. h7 {[%clk 0:00:09]}  Rg4 {[%clk 0:01:43]} 70. R5e4+ {[%clk 0:00:09]}  Ka3 {[%clk 0:01:43]} 71. Rxg4 {[%clk 0:00:09]}  Kb2 {[%clk 0:01:44]} 72. Kg7 {[%clk 0:00:09]}  Ka2 {[%clk 0:01:45]} 73. h8=Q {[%clk 0:00:10]}  Kb1 {[%clk 0:01:45]} 74. b4 {[%clk 0:00:11]}  Ka2 {[%clk 0:01:46]} 75. Rg2+ {[%clk 0:00:10]}  Kb1 {[%clk 0:01:47]} 76. Qh1# {[%clk 0:00:11]} 1-0


[Site "https://www.chess.com"]

[Event "Titled Tuesday Blitz June 13 Late 2023"]
[White "Omariev, Maksim"]
[Black "Arnold, Ken"]
[WhiteFideId "4193423"]
[BlackFideId "2056836"]
[WhiteElo "2354"]
[BlackElo "2448"]
[Result "1-0"]
[Round "8"]
[TimeControl "180+2"]
[Date "2023.06.13"]
[WhiteClock "0:00:27"]
[BlackClock "0:00:16"]
[Board "105"]

1. e4 {[%clk 0:03:00]}  c5 {[%clk 0:02:50]} 2. Nf3 {[%clk 0:02:59]}  d6 {[%clk 0:02:48]} 3. d4 {[%clk 0:02:59]}  cxd4 {[%clk 0:02:48]} 4. Nxd4 {[%clk 0:03:00]}  Nf6 {[%clk 0:02:49]} 5. Nc3 {[%clk 0:03:01]}  a6 {[%clk 0:02:49]} 6. h3 {[%clk 0:03:01]}  e5 {[%clk 0:02:49]} 7. Nde2 {[%clk 0:03:01]}  Be7 {[%clk 0:02:49]} 8. g4 {[%clk 0:03:01]}  h6 {[%clk 0:02:49]} 9. Bg2 {[%clk 0:03:02]}  Be6 {[%clk 0:02:49]} 10. Be3 {[%clk 0:02:59]}  Nc6 {[%clk 0:02:48]} 11. Ng3 {[%clk 0:02:58]}  g6 {[%clk 0:02:43]} 12. Qd2 {[%clk 0:02:58]}  h5 {[%clk 0:02:42]} 13. g5 {[%clk 0:02:18]}  Nd7 {[%clk 0:02:36]} 14. Nd5 {[%clk 0:02:16]}  Bxd5 {[%clk 0:02:31]} 15. exd5 {[%clk 0:02:16]}  Nd4 {[%clk 0:02:17]} 16. Bxd4 {[%clk 0:02:06]}  exd4 {[%clk 0:02:17]} 17. Qxd4 {[%clk 0:02:07]}  O-O {[%clk 0:02:16]} 18. h4 {[%clk 0:02:07]}  Ne5 {[%clk 0:02:02]} 19. O-O-O {[%clk 0:02:05]}  Qa5 {[%clk 0:02:00]} 20. Kb1 {[%clk 0:02:05]}  Rfc8 {[%clk 0:01:59]} 21. Bf1 {[%clk 0:01:59]}  Bf8 {[%clk 0:01:56]} 22. Ne4 {[%clk 0:01:52]}  Bg7 {[%clk 0:01:50]} 23. f4 {[%clk 0:01:16]}  Nc4 {[%clk 0:00:59]} 24. Nf6+ {[%clk 0:01:15]}  Bxf6 {[%clk 0:00:59]} 25. gxf6 {[%clk 0:01:16]}  Qb4 {[%clk 0:00:26]} 26. Rh3 {[%clk 0:00:51]}  b5 {[%clk 0:00:20]} 27. f5 {[%clk 0:00:41]}  gxf5 {[%clk 0:00:18]} 28. Qg1+ {[%clk 0:00:25]}  Kf8 {[%clk 0:00:16]} 29. Qg7+ {[%clk 0:00:25]}  Ke8 {[%clk 0:00:16]} 30. Qg8+ {[%clk 0:00:26]}  Kd7 {[%clk 0:00:15]} 31. Qxf7+ {[%clk 0:00:27]}  Kd8 {[%clk 0:00:16]} 32. Qe7# {[%clk 0:00:27]} 1-0


[Site "https://www.chess.com"]

[Event "Titled Tuesday Blitz June 13 Late 2023"]
[White "Ammar, Sedrani"]
[Black "Korpics, Zsolt"]
[WhiteFideId "9312331"]
[BlackFideId "705241"]
[WhiteElo "2115"]
[BlackElo "2342"]
[Result "1-0"]
[Round "8"]
[TimeControl "180+2"]
[Date "2023.06.13"]
[WhiteClock "0:01:34"]
[BlackClock "0:00:00"]
[Board "106"]

1. e4 {[%clk 0:02:59]}  c5 {[%clk 0:02:00]} 2. Nf3 {[%clk 0:02:58]}  e6 {[%clk 0:01:59]} 3. d4 {[%clk 0:02:58]}  cxd4 {[%clk 0:02:00]} 4. Nxd4 {[%clk 0:02:58]}  Nc6 {[%clk 0:02:01]} 5. Nc3 {[%clk 0:02:58]}  Qc7 {[%clk 0:02:01]} 6. Be2 {[%clk 0:02:57]}  a6 {[%clk 0:02:00]} 7. O-O {[%clk 0:02:57]}  Nf6 {[%clk 0:02:01]} 8. Nxc6 {[%clk 0:02:49]}  bxc6 {[%clk 0:01:58]} 9. Be3 {[%clk 0:02:49]}  d5 {[%clk 0:01:54]} 10. exd5 {[%clk 0:02:49]}  cxd5 {[%clk 0:01:54]} 11. Bf3 {[%clk 0:02:46]}  Rb8 {[%clk 0:01:46]} 12. Rb1 {[%clk 0:02:43]}  Bd6 {[%clk 0:01:43]} 13. h3 {[%clk 0:02:42]}  O-O {[%clk 0:01:42]} 14. Bg5 {[%clk 0:02:34]}  Nd7 {[%clk 0:01:36]} 15. Qd2 {[%clk 0:02:34]}  Ne5 {[%clk 0:01:33]} 16. Be2 {[%clk 0:02:31]}  Nc4 {[%clk 0:01:07]} 17. Bxc4 {[%clk 0:02:29]}  Qxc4 {[%clk 0:01:07]} 18. a3 {[%clk 0:02:22]}  a5 {[%clk 0:01:03]} 19. Rfe1 {[%clk 0:02:17]}  Ba6 {[%clk 0:00:58]} 20. Ne2 {[%clk 0:02:11]}  h6 {[%clk 0:00:56]} 21. Bf4 {[%clk 0:02:07]}  e5 {[%clk 0:00:56]} 22. Bg3 {[%clk 0:02:08]}  f5 {[%clk 0:00:37]} 23. f4 {[%clk 0:02:03]}  e4 {[%clk 0:00:36]} 24. Bf2 {[%clk 0:02:03]}  Rbc8 {[%clk 0:00:33]} 25. Nd4 {[%clk 0:01:59]}  Bc5 {[%clk 0:00:30]} 26. c3 {[%clk 0:01:59]}  Bxd4 {[%clk 0:00:24]} 27. Bxd4 {[%clk 0:02:00]}  a4 {[%clk 0:00:21]} 28. Qf2 {[%clk 0:01:59]}  Qc6 {[%clk 0:00:17]} 29. Rbd1 {[%clk 0:01:58]}  Bd3 {[%clk 0:00:17]} 30. Qg3 {[%clk 0:01:57]}  Rb8 {[%clk 0:00:17]} 31. Rd2 {[%clk 0:01:55]}  Rb7 {[%clk 0:00:15]} 32. Be5 {[%clk 0:01:54]}  Kh7 {[%clk 0:00:13]} 33. Kh2 {[%clk 0:01:50]}  Qg6 {[%clk 0:00:13]} 34. Qe3 {[%clk 0:01:49]}  Rb3 {[%clk 0:00:08]} 35. Rg1 {[%clk 0:01:47]}  Qb6 {[%clk 0:00:08]} 36. Bd4 {[%clk 0:01:43]}  Qb8 {[%clk 0:00:09]} 37. g4 {[%clk 0:01:41]}  Rxb2 {[%clk 0:00:05]} 38. Rxb2 {[%clk 0:01:39]}  Qxb2+ {[%clk 0:00:05]} 39. Rg2 {[%clk 0:01:40]}  Qb8 {[%clk 0:00:04]} 40. gxf5 {[%clk 0:01:39]}  Rf7 {[%clk 0:00:05]} 41. Qg3 {[%clk 0:01:39]}  Qf8 {[%clk 0:00:04]} 42. Qg6+ {[%clk 0:01:38]}  Kh8 {[%clk 0:00:04]} 43. Qxh6+ {[%clk 0:01:38]}  Kg8 {[%clk 0:00:00]} 44. f6 {[%clk 0:01:34]} 1-0


[Site "https://www.chess.com"]

[Event "Titled Tuesday Blitz June 13 Late 2023"]
[White "Jonkman, Harmen"]
[Black "kiwibobo"]
[WhiteFideId "1002708"]
[WhiteElo "2368"]
[BlackElo "2311"]
[Result "1/2-1/2"]
[Round "8"]
[TimeControl "180+2"]
[Date "2023.06.13"]
[WhiteClock "0:00:09"]
[BlackClock "0:00:04"]
[Board "107"]

1. d4 {[%clk 0:01:47]}  Nf6 {[%clk 0:02:58]} 2. Nf3 {[%clk 0:01:46]}  g6 {[%clk 0:02:57]} 3. Bf4 {[%clk 0:01:46]}  Bg7 {[%clk 0:02:53]} 4. h3 {[%clk 0:01:47]}  O-O {[%clk 0:02:51]} 5. e3 {[%clk 0:01:46]}  d5 {[%clk 0:02:51]} 6. Nbd2 {[%clk 0:01:45]}  c5 {[%clk 0:02:51]} 7. dxc5 {[%clk 0:01:44]}  Nfd7 {[%clk 0:02:48]} 8. Nb3 {[%clk 0:01:42]}  Bxb2 {[%clk 0:02:40]} 9. Rb1 {[%clk 0:01:42]}  Bc3+ {[%clk 0:02:39]} 10. Nfd2 {[%clk 0:01:42]}  e5 {[%clk 0:02:36]} 11. Bh6 {[%clk 0:01:42]}  Re8 {[%clk 0:02:32]} 12. h4 {[%clk 0:01:40]}  Qc7 {[%clk 0:02:06]} 13. h5 {[%clk 0:01:38]}  Nxc5 {[%clk 0:02:05]} 14. Qf3 {[%clk 0:01:35]}  Ne4 {[%clk 0:01:30]} 15. Bd3 {[%clk 0:01:33]}  Bf5 {[%clk 0:01:24]} 16. hxg6 {[%clk 0:01:29]}  fxg6 {[%clk 0:01:21]} 17. g4 {[%clk 0:01:28]}  Nxd2 {[%clk 0:01:10]} 18. Nxd2 {[%clk 0:01:23]}  e4 {[%clk 0:00:53]} 19. Qh3 {[%clk 0:01:13]}  Be6 {[%clk 0:00:31]} 20. Bb5 {[%clk 0:01:05]}  Nd7 {[%clk 0:00:27]} 21. Bf4 {[%clk 0:00:58]}  Ne5 {[%clk 0:00:21]} 22. Bxe8 {[%clk 0:00:44]}  Rxe8 {[%clk 0:00:17]} 23. Kf1 {[%clk 0:00:35]}  Bxd2 {[%clk 0:00:12]} 24. Bxe5 {[%clk 0:00:35]}  Qxe5 {[%clk 0:00:10]} 25. Qxh7+ {[%clk 0:00:34]}  Kf8 {[%clk 0:00:10]} 26. Rxb7 {[%clk 0:00:33]}  Qf6 {[%clk 0:00:07]} 27. Qh8+ {[%clk 0:00:32]}  Qxh8 {[%clk 0:00:07]} 28. Rxh8+ {[%clk 0:00:31]}  Bg8 {[%clk 0:00:08]} 29. Rxa7 {[%clk 0:00:27]}  Bc3 {[%clk 0:00:08]} 30. Rh6 {[%clk 0:00:27]}  Re6 {[%clk 0:00:06]} 31. g5 {[%clk 0:00:24]}  Bg7 {[%clk 0:00:05]} 32. Rh4 {[%clk 0:00:23]}  Rc6 {[%clk 0:00:05]} 33. Kg2 {[%clk 0:00:20]}  Rxc2 {[%clk 0:00:05]} 34. Rh1 {[%clk 0:00:19]}  Bf7 {[%clk 0:00:05]} 35. Rb1 {[%clk 0:00:19]}  d4 {[%clk 0:00:04]} 36. Rb8+ {[%clk 0:00:19]}  Be8 {[%clk 0:00:04]} 37. Raa8 {[%clk 0:00:19]}  d3 {[%clk 0:00:04]} 38. Rxe8+ {[%clk 0:00:19]}  Kf7 {[%clk 0:00:05]} 39. Red8 {[%clk 0:00:19]}  Bc3 {[%clk 0:00:04]} 40. Ra6 {[%clk 0:00:17]}  d2 {[%clk 0:00:03]} 41. Rd7+ {[%clk 0:00:17]}  Ke8 {[%clk 0:00:03]} 42. Rb7 {[%clk 0:00:15]}  d1=Q {[%clk 0:00:03]} 43. Ra8+ {[%clk 0:00:15]}  Qd8 {[%clk 0:00:04]} 44. Rxd8+ {[%clk 0:00:15]}  Kxd8 {[%clk 0:00:05]} 45. a4 {[%clk 0:00:13]}  Ra2 {[%clk 0:00:05]} 46. Rb6 {[%clk 0:00:12]}  Rxa4 {[%clk 0:00:05]} 47. Rxg6 {[%clk 0:00:12]}  Ke7 {[%clk 0:00:06]} 48. Rc6 {[%clk 0:00:11]}  Be5 {[%clk 0:00:05]} 49. Kh3 {[%clk 0:00:11]}  Kf7 {[%clk 0:00:06]} 50. Kg4 {[%clk 0:00:12]}  Rb4 {[%clk 0:00:06]} 51. Kf5 {[%clk 0:00:12]}  Bb2 {[%clk 0:00:05]} 52. Rc5 {[%clk 0:00:11]}  Ba1 {[%clk 0:00:05]} 53. Rc7+ {[%clk 0:00:11]}  Kg8 {[%clk 0:00:04]} 54. Re7 {[%clk 0:00:11]}  Rb2 {[%clk 0:00:04]} 55. Kg6 {[%clk 0:00:10]}  Rb6+ {[%clk 0:00:04]} 56. Kh5 {[%clk 0:00:09]}  Rb2 {[%clk 0:00:04]} 57. Kg6 {[%clk 0:00:09]}  Rb6+ {[%clk 0:00:04]} 58. Kf5 {[%clk 0:00:09]}  Rb2 {[%clk 0:00:04]} 59. Kg6 {[%clk 0:00:09]} 1/2-1/2


[Site "https://www.chess.com"]